bitfinex-derivatives/quotes_SOLF0:USTF0_20241217
["timestamp","ask_amount","ask_price","bid_price","bid_amount"]
[1734434979078,2.2465,222.57,222.56,10.66025535]
[1734434979289,25.61302602,222.57,222.56,10.66025535]
[1734434980081,13.77303563,222.57,222.53,10.66025535]
[1734434980281,2.2468,222.55,222.53,10.66025535]
[1734434980581,23.28491369,222.54,222.53,10.66025535]
[1734434981389,25.53181369,222.54,222.53,10.66025535]
[1734434981989,11.75877806,222.54,222.53,10.66025535]
[1734434982489,9.51187806,222.54,222.5,10.66025535]
[1734434982690,9.51187806,222.53,222.5,10.66025535]
[1734434982886,9.51187806,222.52,222.5,10.66025535]
[1734434983192,7.26391156,222.51,222.5,10.66025535]
[1734434983787,2.14,222.57,222.5,10.66025535]
[1734434983989,4.57695351,222.56,222.5,10.66025535]
[1734434984185,2.2458,222.65,222.56,2.2466]
[1734434984390,2.14,222.72,222.59,10.66025535]
[1734434984787,10.72303546,222.72,222.59,10.66025535]
[1734434984991,2.14,222.72,222.59,10.66025535]
[1734434985390,2.2462,222.6,222.59,10.66025535]
[1734434998206,2.2462,222.6,222.59,6.82067163]
[1734435002013,2.2457,222.66,222.59,6.82067163]
[1734435002314,2.14,222.68,222.55,1.485]
[1734435002610,2.14,222.68,222.62,6.82067163]
[1734435002814,2.2459,222.63,222.62,6.82067163]
[1734435004214,2.2462,222.61,222.57,2.2465]
[1734435004413,6.82067163,222.67,222.55,1.485]
[1734435004710,6.82067163,222.67,222.6,6.82067163]
[1734435005013,2.2461,222.61,222.57,2.2465]
[1734435005213,2.2461,222.61,222.6,6.82067163]
[1734435006317,6.82067163,222.68,222.6,6.82067163]
[1734435007019,2.2461,222.61,222.6,6.82067163]
[1734435009815,9.06067163,222.69,222.55,1.485]
[1734435010016,2.2463,222.6,222.57,2.2465]
[1734435011621,9.06067163,222.69,222.57,2.2465]
[1734435011818,16.32946157,222.69,222.61,6.82067163]
[1734435012719,2.246,222.62,222.61,6.82067163]
[1734435013320,2.2463,222.6,222.57,2.2465]
[1734435013521,2.2463,222.6,222.59,6.82067163]
[1734435013726,6.82067163,222.63,222.48,5.26431846]
[1734435013920,2.2472,222.51,222.49,1.12396518]
[1734435014221,6.82067163,222.57,222.48,5.26431846]
[1734435014424,6.82067163,222.57,222.49,6.82067163]
[1734435014614,6.82067163,222.55,222.49,6.82067163]
[1734435015124,2.2474,222.49,222.48,5.26431846]
[1734435015423,2.2474,222.49,222.48,6.82067163]
[1734435015626,2.2476,222.47,222.46,6.82067163]
[1734435015920,6.82067163,222.51,222.42,2.24]
[1734435016224,2.248,222.43,222.41,2.24]
[1734435016424,6.82067163,222.51,222.43,6.82067163]
[1734435016825,2.2479,222.44,222.43,6.82067163]
[1734435017022,6.82067163,222.47,222.41,2.24]
[1734435017320,6.82067163,222.47,222.4,6.82067163]
[1734435020118,2.2482,222.41,222.4,6.82067163]
[1734435021120,2.2481,222.43,222.4,6.82067163]
[1734435021426,6.82067163,222.47,222.4,6.82067163]
[1734435022527,2.2481,222.42,222.4,6.82067163]
[1734435024030,6.82067163,222.47,222.4,6.82067163]
[1734435024331,2.248,222.43,222.4,6.82067163]
[1734435025027,2.248,222.43,222.42,6.82067163]
[1734435025229,2.96,222.52,222.42,6.82067163]
[1734435025529,2.96,222.52,222.48,6.82067163]
[1734435025725,2.2474,222.49,222.42,2.2481]
[1734435025931,6.82067163,222.45,222.29,1.4881]
[1734435026127,6.82067163,222.45,222.34,2.24]
[1734435026430,6.82067163,222.45,222.38,6.82067163]
[1734435027941,2.2482,222.42,222.38,6.82067163]
[1734435028133,2.2482,222.42,222.4,6.82067163]
[1734435028437,2.2482,222.42,222.39,6.82067163]
[1734435029239,2.2482,222.41,222.39,6.82067163]
[1734435029935,6.82067163,222.46,222.39,6.82067163]
[1734435030140,2.2483,222.4,222.39,6.82067163]
[1734435030939,2.2484,222.39,222.37,6.82067163]
[1734435031536,8.27807163,222.44,222.37,6.82067163]
[1734435031735,8.27807163,222.44,222.35,6.82067163]
[1734435031736,2.2485,222.38,222.35,6.82067163]
[1734435032538,2.2486,222.37,222.35,6.82067163]
[1734435032934,2.2485,222.38,222.35,6.82067163]
[1734435033135,1.5125,222.41,222.35,6.82067163]
[1734435033742,2.2485,222.39,222.35,9.06947163]
[1734435036139,2.2485,222.38,222.35,9.06947163]
[1734435036340,2.2485,222.38,222.33,41.51175735]
[1734435036341,1.5125,222.41,222.33,43.76075735]
[1734435036542,2.2488,222.36,222.34,6.82067163]
[1734435037237,2.2488,222.35,222.34,6.82067163]
[1734435037736,6.82067163,222.4,222.33,34.01958777]
[1734435037737,2.2489,222.34,222.33,34.01958777]
[1734435038243,2.2489,222.34,222.32,6.82067163]
[1734435039342,9.02067163,222.4,222.32,6.82067163]
[1734435039544,2.2488,222.35,222.32,9.06967163]
[1734435041044,2.2488,222.35,222.32,6.82067163]
[1734435042345,2.2488,222.35,222.32,9.06967163]
[1734435042643,2.2487,222.36,222.32,9.06967163]
[1734435042846,1.5125,222.41,222.34,6.82067163]
[1734435043039,1.5284,222.43,222.38,6.82067163]
[1734435044044,2.2481,222.42,222.38,9.06917163]
[1734435044244,2.2481,222.42,222.38,6.82067163]
[1734435045743,2.2482,222.41,222.38,6.82067163]
[1734435046937,2.2484,222.4,222.35,4.4487]
[1734435047141,6.82067163,222.42,222.35,9.02067163]
[1734435047339,6.82067163,222.42,222.35,6.82067163]
[1734435047539,2.2486,222.37,222.35,6.82067163]
[1734435047744,1.5284,222.43,222.35,6.82067163]
[1734435047944,6.82067163,222.42,222.35,6.82067163]
[1734435048342,2.2485,222.39,222.35,6.82067163]
[1734435048650,6.82067163,222.42,222.35,6.82067163]
[1734435048844,2.2483,222.4,222.35,6.82067163]
[1734435049044,6.82067163,222.41,222.35,6.82067163]
[1734435049642,3.7284,222.43,222.35,6.82067163]
[1734435049848,6.82067163,222.41,222.35,6.82067163]
[1734435050350,2.2486,222.37,222.35,6.82067163]
[1734435051548,2.2486,222.37,222.34,2.2489]
[1734435051851,2.2486,222.37,222.34,9.06957163]
[1734435053850,2.2486,222.37,222.34,2.2489]
[1734435054049,2.2486,222.37,222.34,9.06957163]
[1734435055150,2.2486,222.37,222.35,2.2488]
[1734435057354,2.2485,222.38,222.35,2.2488]
[1734435058846,6.82067163,222.41,222.31,3.7685]
[1734435059051,2.2486,222.37,222.34,2.2489]
[1734435060348,2.2486,222.37,222.31,3.7685]
[1734435060349,2.2481,222.42,222.39,2.2483]
[1734435060553,325.4920019,222.64,222.38,6.82067163]
[1734435060554,5.28215972,222.48,222.38,6.82067163]
[1734435060750,6.82067163,222.46,222.4,6.82067163]
[1734435061457,2.2478,222.45,222.42,2.2481]
[1734435061650,2.2478,222.45,222.4,6.82067163]
[1734435062255,2.2478,222.45,222.41,2.2481]
[1734435062959,2.248,222.43,222.4,6.82067163]
[1734435063258,2.248,222.43,222.38,6.82067163]
[1734435064459,2.248,222.43,222.4,2.2483]
[1734435064761,1.5108,222.47,222.38,6.82067163]
[1734435064957,1.5108,222.47,222.4,2.2482]
[1734435064958,6.82067163,222.45,222.4,2.2482]
[1734435065456,2.2479,222.44,222.4,2.2482]
[1734435066253,6.82067163,222.45,222.4,2.2482]
[1734435066457,2.2481,222.42,222.38,2.2484]
[1734435066654,6.82067163,222.43,222.36,2.14]
[1734435067159,6.82067163,222.43,222.35,6.82067163]
[1734435067361,2.2482,222.41,222.37,2.2485]
[1734435068266,6.82067163,222.43,222.38,2.2484]
[1734435068461,2.2481,222.42,222.38,2.2484]
[1734435070164,1.5108,222.47,222.41,6.82067163]
[1734435070870,1.5108,222.47,222.42,2.248]
[1734435070871,2.2477,222.46,222.42,2.248]
[1734435072865,3.0905,222.54,222.41,6.82067163]
[1734435073071,2.2475,222.48,222.44,2.2478]
[1734435073272,9.06817163,222.48,222.44,2.2478]
[1734435073772,2.2476,222.47,222.43,2.2479]
[1734435075070,9.06817163,222.48,222.44,2.2478]
[1734435075466,2.2471,222.52,222.48,2.2474]
[1734435075864,8.33887163,222.53,222.48,2.2474]
[1734435076067,8.33887163,222.53,222.47,6.82067163]
[1734435076373,6.82067163,222.57,222.51,6.82067163]
[1734435077375,9.06727163,222.57,222.53,2.2469]
[1734435077574,9.06727163,222.57,222.51,6.82067163]
[1734435078271,2.2466,222.57,222.51,6.82067163]
[1734435078471,2.2466,222.57,222.52,2.247]
[1734435079580,1.6006,222.6,222.51,6.82067163]
[1734435079779,2.2465,222.58,222.53,2.2469]
[1734435080077,6.82067163,222.59,222.51,6.82067163]
[1734435080480,2.2466,222.57,222.52,2.2471]
[1734435081477,2.2467,222.56,222.52,2.2471]
[1734435083172,6.82067163,222.59,222.53,6.82067163]
[1734435083382,11.93767163,222.61,222.53,6.82067163]
[1734435083681,2.977,222.61,222.55,6.82067163]
[1734435084375,2.2463,222.6,222.56,2.2466]
[1734435084881,9.06697163,222.6,222.56,2.2466]
[1734435085077,2.2465,222.58,222.54,4.3868]
[1734435085285,2.2465,222.58,222.54,2.2468]
[1734435085485,6.82067163,222.6,222.52,6.82067163]
[1734435086476,2.2466,222.57,222.53,2.2469]
[1734435086780,6.82067163,222.58,222.51,8.96067163]
[1734435087480,6.82067163,222.6,222.53,6.82067163]
[1734435088086,2.2465,222.58,222.55,2.2467]
[1734435088286,6.82067163,222.6,222.53,6.82067163]
[1734435088487,2.977,222.61,222.55,6.82067163]
[1734435088689,5.30378095,222.64,222.55,6.82067163]
[1734435088885,6.82067163,222.62,222.55,6.82067163]
[1734435089483,2.2462,222.61,222.57,2.2465]
[1734435089683,6.82067163,222.6,222.51,2.14]
[1734435089989,6.82067163,222.58,222.51,2.14]
[1734435090191,6.82067163,222.58,222.51,8.96067163]
[1734435090892,2.2467,222.56,222.51,11.20777163]
[1734435091791,6.82067163,222.56,222.49,2.2473]
[1734435092691,2.247,222.53,222.49,2.2473]
[1734435093493,2.247,222.53,222.5,2.2472]
[1734435094087,2.2471,222.52,222.48,8.96067163]
[1734435094293,6.82067163,222.49,222.35,4.4976]
[1734435094494,6.82067163,222.49,222.36,1.5621]
[1734435094695,2.2479,222.44,222.41,9.06877163]
[1734435094894,2.2479,222.44,222.39,6.82067163]
[1734435095094,2.2479,222.44,222.37,2.14]
[1734435095289,2.2479,222.44,222.39,6.82067163]
[1734435096193,2.2479,222.44,222.39,12.17480831]
[1734435096397,2.2479,222.44,222.4,2.2482]
[1734435098396,2.2477,222.46,222.43,6.82067163]
[1734435099495,2.2477,222.46,222.43,9.06867163]
[1734435099990,6.82067163,222.5,222.43,9.06867163]
[1734435100191,1.5105,222.58,222.45,6.82067163]
[1734435100387,6.82067163,222.5,222.42,2.14]
[1734435100592,6.82067163,222.44,222.35,6.82067163]
[1734435100795,6.82067163,222.42,222.35,6.82067163]
[1734435101092,2.2482,222.41,222.35,6.82067163]
[1734435101592,2.2483,222.4,222.37,2.2486]
[1734435101786,2.2483,222.4,222.35,6.82067163]
[1734435102393,6.82067163,222.42,222.37,2.2486]
[1734435102394,2.2482,222.41,222.37,2.2486]
[1734435102593,2.2482,222.41,222.37,9.06927163]
[1734435103190,2.2478,222.45,222.39,6.82067163]
[1734435103390,2.2478,222.45,222.41,6.82067163]
[1734435104090,2.2478,222.45,222.41,9.06877163]
[1734435104288,2.2478,222.45,222.41,6.82067163]
[1734435104495,2.2477,222.46,222.41,6.82067163]
[1734435105393,2.2477,222.46,222.42,2.248]
[1734435106100,2.2477,222.46,222.41,9.06887163]
[1734435107696,2.2477,222.46,222.41,2.2482]
[1734435108088,5.3320072,222.51,222.39,2.14]
[1734435108089,4.4915,222.65,222.45,6.82067163]
[1734435108293,3.0638,222.58,222.5,6.82067163]
[1734435108899,2.2466,222.57,222.52,2.247]
[1734435109097,2.2466,222.57,222.52,9.06767163]
[1734435109399,3.0638,222.58,222.54,6.82067163]
[1734435109591,6.82067163,222.62,222.54,6.82067163]
[1734435109795,64.92,222.79,222.56,6.82067163]
[1734435109796,3.1671,222.65,222.56,6.82067163]
[1734435109992,6.82067163,222.64,222.56,6.82067163]
[1734435110597,6.82067163,222.64,222.54,2.14]
[1734435110897,246.831276,222.76,222.62,6.82067163]
[1734435111096,6.82067163,222.71,222.64,6.82067163]
[1734435111303,9.06587163,222.71,222.64,6.82067163]
[1734435111599,6.82067163,222.69,222.64,2.14]
[1734435112003,5.28321568,222.74,222.64,2.14]
[1734435112004,10.65629142,222.73,222.64,2.14]
[1734435112894,2.2453,222.7,222.64,2.14]
[1734435113100,10.65629142,222.73,222.64,2.14]
[1734435113501,2.2454,222.69,222.64,2.14]
[1734435113794,2.2454,222.69,222.63,2.2459]
[1734435113795,10.65629142,222.7,222.55,5.52870823]
[1734435114001,10.65629142,222.7,222.56,2.14]
[1734435115394,2.2455,222.67,222.61,2.2461]
[1734435115701,2.2455,222.67,222.62,2.14]
[1734435117703,2.14,222.71,222.62,2.14]
[1734435117898,10.65629142,222.86,222.64,10.65629142]
[1734435117899,10.65629142,222.79,222.64,10.65629142]
[1734435118104,12.83629142,222.79,222.64,10.65629142]
[1734435118304,3.1451,222.75,222.67,10.65629142]
[1734435118505,3.1451,222.75,222.68,2.18]
[1734435119200,12.90059142,222.8,222.73,2.2449]
[1734435119395,12.90059142,222.8,222.68,2.18]
[1734435119396,10.65629142,222.8,222.68,2.18]
[1734435120103,10.65629142,222.83,222.73,2.2449]
[1734435120299,3.1286,222.85,222.74,12.83629142]
[1734435120606,2.244,222.83,222.77,2.2445]
[1734435121001,3.1286,222.85,222.77,2.2445]
[1734435121503,3.1286,222.85,222.75,2.18]
[1734435121703,2.411,222.81,222.76,2.2446]
[1734435122202,2.411,222.81,222.63,51.38]
[1734435122203,10.65629142,222.77,222.7,2.18]
[1734435122404,10.65629142,222.77,222.63,62.03629142]
[1734435122603,10.65629142,222.74,222.64,2.18]
[1734435122903,2.2452,222.7,222.65,2.2457]
[1734435123507,2.2451,222.71,222.66,2.2456]
[1734435124102,5.3574,222.73,222.65,5.36177949]
[1734435124506,1.544,222.73,222.66,10.65629142]
[1734435124707,1.544,222.73,222.69,2.2453]
[1734435124903,1.544,222.73,222.7,2.18]
[1734435125907,1.544,222.73,222.7,4.4252]
[1734435126101,3.789,222.73,222.7,2.18]
[1734435127003,10.65629142,222.77,222.7,2.18]
[1734435127206,1.4933,222.8,222.7,2.18]
[1734435127207,1.5302,222.79,222.7,2.18]
[1734435127809,2.2447,222.76,222.7,4.4252]
[1734435128213,2.2447,222.76,222.71,2.16]
[1734435128514,1.5302,222.79,222.71,2.16]
[1734435128708,2.2447,222.75,222.71,2.16]
[1734435129214,2.2449,222.74,222.71,2.16]
[1734435129412,1.5302,222.79,222.71,2.16]
[1734435131211,2.2446,222.77,222.71,2.16]
[1734435131513,1.5302,222.79,222.71,2.16]
[1734435131917,2.2447,222.75,222.71,2.16]
[1734435132113,1.5302,222.79,222.71,2.16]
[1734435133215,2.2447,222.76,222.71,2.16]
[1734435133419,1.5302,222.79,222.71,2.16]
[1734435134913,2.2444,222.78,222.72,2.2449]
[1734435135117,2.2444,222.78,222.71,2.16]
[1734435135713,12.81629142,222.83,222.71,2.16]
[1734435135714,10.65629142,222.83,222.71,2.16]
[1734435136321,2.2443,222.79,222.74,2.2448]
[1734435136824,10.65629142,222.83,222.71,2.16]
[1734435137024,2.2445,222.78,222.73,2.2449]
[1734435137519,2.2445,222.78,222.71,2.16]
[1734435138023,2.2445,222.78,222.73,2.2449]
[1734435138818,2.2445,222.77,222.73,2.2449]
[1734435139517,10.65629142,222.83,222.71,2.16]
[1734435139724,2.2446,222.76,222.72,2.245]
[1734435140021,2.2446,222.76,222.71,2.16]
[1734435140219,2.2446,222.77,222.73,2.2449]
[1734435141823,10.65629142,222.79,222.65,5.36177949]
[1734435142128,10.65629142,222.79,222.66,2.16]
[1734435142327,2.2448,222.74,222.7,2.2452]
[1734435143025,2.245,222.73,222.7,2.2452]
[1734435144423,2.2449,222.74,222.7,2.2452]
[1734435146529,2.2451,222.72,222.69,2.16]
[1734435147927,2.2451,222.72,222.68,4.4254]
[1734435148631,2.2452,222.71,222.68,2.18]
[1734435149429,2.2452,222.71,222.67,2.2455]
[1734435149630,2.2452,222.71,222.67,4.4255]
[1734435150334,2.16,222.8,222.67,2.18]
[1734435150522,10.65629142,222.79,222.67,2.18]
[1734435151229,10.65629142,222.79,222.65,10.65629142]
[1734435151525,10.65629142,222.79,222.66,2.18]
[1734435151730,2.2447,222.76,222.66,2.18]
[1734435151931,1.4833,222.75,222.66,2.18]
[1734435152132,3.0527,222.75,222.66,2.18]
[1734435152431,2.2454,222.69,222.65,4.4257]
[1734435153231,4.5477,222.75,222.66,2.2456]
[1734435153434,2.2452,222.71,222.66,2.2456]
[1734435153626,4.5477,222.75,222.69,10.65629142]
[1734435153627,3.0527,222.75,222.69,10.65629142]
[1734435153827,2.16,222.8,222.7,2.18]
[1734435154333,12.81629142,222.8,222.7,2.18]
[1734435154527,2.2451,222.71,222.7,2.18]
[1734435154729,2.2451,222.71,222.66,10.65629142]
[1734435155027,2.2451,222.71,222.68,2.18]
[1734435155426,2.2453,222.7,222.65,2.2457]
[1734435155630,10.65629142,222.77,222.65,4.4257]
[1734435156435,2.2453,222.7,222.65,4.4257]
[1734435156634,2.2453,222.7,222.66,2.2456]
[1734435156928,10.65629142,222.77,222.66,2.2456]
[1734435157531,2.2452,222.71,222.66,2.2456]
[1734435158136,2.18,222.78,222.66,10.65629142]
[1734435158831,2.18,222.78,222.62,5.47244367]
[1734435159033,10.65629142,222.77,222.63,2.18]
[1734435159334,2.18,222.76,222.63,2.18]
[1734435159530,2.18,222.76,222.67,2.2455]
[1734435159726,3.0946,222.75,222.67,2.2455]
[1734435160936,4.5798,222.75,222.67,2.2455]
[1734435161537,2.18,222.74,222.67,2.2455]
[1734435161938,6.81823245,222.73,222.67,2.2455]
[1734435162531,2.2452,222.71,222.67,2.2455]
[1734435163135,1.525,222.75,222.7,6.81823245]
[1734435163338,251.318876,222.85,222.72,6.81823245]
[1734435163339,6.81823245,222.79,222.72,6.81823245]
[1734435163841,2.2445,222.78,222.74,2.2448]
[1734435164245,2.2445,222.78,222.74,9.06303245]
[1734435165436,2.2442,222.81,222.76,9.06283245]
[1734435165634,6.7607,222.84,222.78,6.81823245]
[1734435165635,4.5807,222.84,222.78,6.81823245]
[1734435165838,2.9908,222.84,222.78,6.81823245]
[1734435166040,2.9908,222.84,222.75,10.64123553]
[1734435166237,5.2347,222.84,222.77,2.2445]
[1734435166446,2.9908,222.84,222.75,10.64123553]
[1734435167643,2.2439,222.83,222.79,2.2443]
[1734435170147,7.28028177,222.85,222.79,2.18]
[1734435170340,12.82123553,222.91,222.79,2.18]
[1734435170650,7.28028177,222.9,222.79,2.18]
[1734435172543,2.2434,222.88,222.79,2.18]
[1734435173147,2.2436,222.87,222.82,2.2439]
[1734435173846,2.2436,222.87,222.83,2.2439]
[1734435174049,2.2436,222.87,222.79,2.18]
[1734435174050,0.26952,222.95,222.84,12.82123553]
[1734435174241,0.26952,222.95,222.85,2.18]
[1734435174653,2.2431,222.92,222.85,2.18]
[1734435175148,2.2431,222.92,222.87,2.2434]
[1734435176656,2.2431,222.92,222.88,2.2434]
[1734435178056,2.2431,222.92,222.89,2.2433]
[1734435178257,0.26952,222.95,222.89,2.2433]
[1734435178453,2.2429,222.93,222.89,2.2433]
[1734435180856,2.51222,222.95,222.85,2.18]
[1734435181057,2.51222,222.95,222.87,10.64123553]
[1734435181354,7.53609999,222.95,222.87,10.64123553]
[1734435181558,0.26952,222.95,222.87,10.64123553]
[1734435181759,2.2429,222.94,222.89,2.2432]
[1734435182056,2.2429,222.94,222.87,10.64123553]
[1734435182249,0.26952,222.95,222.87,10.64123553]
[1734435182450,2.51222,222.95,222.9,2.2431]
[1734435182862,2.51222,222.95,222.9,2.2]
[1734435185552,2.51222,222.95,222.91,2.2431]
[1734435186358,2.51222,222.95,222.9,9.00381488]
[1734435186558,2.2428,222.94,222.9,11.24701488]
[1734435186955,2.2428,222.94,222.9,9.00381488]
[1734435187554,0.26952,222.95,222.92,6.80381488]
[1734435188360,2.51232,222.95,222.92,6.80381488]
[1734435188562,0.26952,222.95,222.92,6.80381488]
[1734435188761,0.26952,222.95,222.92,9.04681488]
[1734435189461,0.26952,222.95,222.9,2.2]
[1734435189964,0.26952,222.95,222.91,9.04691488]
[1734435190156,0.26952,222.95,222.93,6.80381488]
[1734435191165,12.23770052,223.0,222.93,6.80381488]
[1734435191564,2.2425,222.97,222.93,9.04671488]
[1734435200864,2.2427,222.95,222.92,2.243]
[1734435201064,6.80381488,222.98,222.91,2.2]
[1734435201964,6.80381488,222.98,222.9,2.2432]
[1734435201965,2.2429,222.94,222.9,2.2432]
[1734435202170,2.2429,222.94,222.9,9.04701488]
[1734435202971,8.624835,223.01,222.92,6.80381488]
[1734435203171,2.2425,222.97,222.94,6.80381488]
[1734435203369,15.42864988,223.01,222.94,6.80381488]
[1734435203567,3.1292,223.01,222.96,2.2426]
[1734435204067,2.2423,223.0,222.96,2.2426]
[1734435204572,2.2421,223.01,222.98,2.2424]
[1734435204867,2.2421,223.01,222.96,6.80381488]
[1734435205069,2.2421,223.01,222.96,2.2426]
[1734435205267,2.2423,222.99,222.94,2.2]
[1734435205467,2.2423,222.99,222.95,6.80381488]
[1734435205967,2.2424,222.98,222.95,6.80381488]
[1734435206175,6.80381488,223.01,222.93,6.80381488]
[1734435206364,6.80381488,223.01,222.93,9.00381488]
[1734435206865,2.2426,222.97,222.93,4.4428]
[1734435207071,6.80381488,223.01,222.84,4.4877]
[1734435207072,6.80381488,222.99,222.92,2.2]
[1734435207470,2.2429,222.94,222.92,2.2]
[1734435208267,2.2429,222.94,222.91,6.80381488]
[1734435209375,2.2429,222.93,222.91,6.80381488]
[1734435209569,6.80381488,222.97,222.91,6.80381488]
[1734435209769,3.026,222.98,222.91,6.80381488]
[1734435209971,2.2426,222.96,222.91,6.80381488]
[1734435210272,3.026,222.98,222.91,9.04691488]
[1734435210867,3.026,222.98,222.91,6.80381488]
[1734435211266,2.2426,222.96,222.91,6.80381488]
[1734435211466,3.026,222.98,222.91,6.80381488]
[1734435211668,3.026,222.98,222.93,9.04671488]
[1734435212073,2.2425,222.97,222.93,9.04671488]
[1734435213682,3.026,222.98,222.93,9.04671488]
[1734435213887,2.2426,222.96,222.93,9.04671488]
[1734435214192,2.2426,222.96,222.93,6.80381488]
[1734435214385,2.2426,222.96,222.92,2.243]
[1734435214594,2.2424,222.99,222.95,6.80381488]
[1734435214788,6.80381488,223.02,222.95,6.80381488]
[1734435214990,6.80381488,223.02,222.96,2.2425]
[1734435215185,6.80381488,223.02,222.95,6.80381488]
[1734435215388,6.80381488,223.02,222.94,2.14]
[1734435215593,2.2424,222.99,222.94,11.18661488]
[1734435215995,6.80381488,223.02,222.94,11.18661488]
[1734435216990,6.80381488,223.02,222.94,2.14]
[1734435217395,6.80381488,223.02,222.95,6.80381488]
[1734435217595,6.8256894,223.04,222.95,6.80381488]
[1734435217784,6.80381488,223.03,222.94,2.14]
[1734435217996,6.80381488,223.03,222.97,6.80381488]
[1734435218187,2.2421,223.02,222.97,9.04631488]
[1734435225992,2.2421,223.02,222.9,1.5738]
[1734435225993,6.80381488,223.02,222.95,2.14]
[1734435226198,6.80381488,223.02,222.95,8.94381488]
[1734435226399,6.8256894,223.04,222.95,8.94381488]
[1734435226701,2.2422,223.01,222.96,2.2426]
[1734435230199,6.80381488,223.02,222.96,2.2426]
[1734435230697,6.80381488,223.02,222.95,8.94381488]
[1734435230905,2.2422,223.0,222.97,2.2425]
[1734435231896,6.80381488,223.02,222.95,8.94381488]
[1734435231897,2.2421,223.01,222.95,8.94381488]
[1734435232096,2.2421,223.01,222.96,2.2425]
[1734435232897,6.80381488,223.02,222.96,2.2425]
[1734435233098,2.2423,223.0,222.97,2.2425]
[1734435236399,2.2421,223.01,222.97,2.2425]
[1734435238802,7.28154079,223.03,222.98,6.80381488]
[1734435238998,7.28154079,223.04,222.98,6.80381488]
[1734435239205,10.24304079,223.05,222.98,6.80381488]
[1734435239404,2.2419,223.04,223.0,2.2421]
[1734435241102,2.2417,223.05,223.01,2.2421]
[1734435241302,19.35394978,223.08,223.0,6.80381488]
[1734435241506,7.28029092,223.07,223.0,8.94381488]
[1734435242207,2.2417,223.06,223.02,2.242]
[1734435242407,12.07365886,223.08,223.02,2.242]
[1734435242607,2.2417,223.05,223.0,11.18591488]
[1734435243311,2.2417,223.05,223.01,2.2421]
[1734435243907,6.80381488,223.07,222.9,1.5738]
[1734435244107,2.2422,223.0,222.94,2.2428]
[1734435244315,2.2422,223.0,222.95,7.92570693]
[1734435244509,2.2422,223.0,222.95,6.80381488]
[1734435244709,2.2422,223.0,222.9,1.5738]
[1734435245007,6.80381488,223.01,222.94,6.80381488]
[1734435245207,2.2423,222.99,222.94,6.80381488]
[1734435245409,2.2423,222.99,222.95,2.2426]
[1734435246111,2.2426,222.97,222.93,2.2429]
[1734435246407,6.80381488,223.0,222.92,8.94381488]
[1734435246705,2.242,223.03,222.98,6.80381488]
[1734435246905,2.14,223.07,222.88,1.4657]
[1734435246906,6.80381488,223.07,223.0,6.80381488]
[1734435247214,14.08484573,223.07,223.0,8.94381488]
[1734435247508,2.2416,223.07,223.02,2.242]
[1734435247708,9.04541488,223.07,223.02,2.242]
[1734435248705,6.80381488,223.05,223.0,2.14]
[1734435249006,6.80381488,223.06,223.0,2.14]
[1734435249211,9.04551488,223.06,223.0,4.3821]
[1734435249415,9.04551488,223.06,223.0,2.14]
[1734435249813,9.04551488,223.06,223.01,6.80381488]
[1734435250210,2.2417,223.06,223.01,6.80381488]
[1734435250405,2.2415,223.07,223.02,2.2419]
[1734435251109,2.2416,223.06,223.01,6.80381488]
[1734435251412,6.80381488,223.06,223.0,2.14]
[1734435251813,2.2419,223.04,223.0,2.14]
[1734435253510,2.2419,223.04,223.0,4.3822]
[1734435254210,6.80381488,223.06,223.01,2.2421]
[1734435254211,9.04541488,223.06,223.01,2.2421]
[1734435256312,9.04541488,223.06,223.0,2.14]
[1734435256613,9.04541488,223.06,223.02,2.242]
[1734435256815,9.04541488,223.06,223.0,2.14]
[1734435257217,9.04541488,223.06,223.01,2.242]
[1734435258305,2.2416,223.06,223.01,6.80381488]
[1734435258505,2.2416,223.07,223.02,2.242]
[1734435258914,6.80381488,223.08,223.01,9.04591488]
[1734435259115,2.2417,223.06,223.01,9.04591488]